Cogmind - Beta 13 @@@ ROGUE MODE // 2024.04.10 @ 19:18:16 Player: Skysub Result: Destroyed by S-27 Virus with Autogun Performance ------------- Evolutions (4) 2000 Regions Visited (8) 1600 Robots Destroyed (23) 115 Value Destroyed (625) 625 Prototype IDs (8) 160 Alien Tech Used (0) 0 Bonus (300) 300 TOTAL SCORE: 4800 Bonus ------- Aligned with FarCom 300 Cogmind --------- Core Integrity 0/850 Matter 48/300 Energy 100/100 System Corruption 0% Temperature Cool (0) Movement Core (50) Location -6/Factory Parts ------- > --- POWER (2) -------- (None) > --- PROPULSION (4) --- (None) > --- UTILITY (6) ------ Improved Signal Interpreter Launcher Guidance Computer > --- WEAPON (3) ------- (None) > --- INVENTORY (5) ---- Advanced Weight Redist. System Improved Medium Armor Plating Improved Shield Generator PSU Rigger Field Lobotomy Kit (4) Peak State ------------ > --- POWER ------------ Light Nuclear Core Fission Core > --- PROPULSION ------- Airjet Airjet Airjet Cooled Airjet > --- UTILITY ---------- Small Storage Unit Advanced Visual Processing Unit Improved Sensor Array Improved Signal Interpreter Core Analyzer Hacking Suite > --- WEAPON ----------- Improved Assault Rifle Gauss Rifle Precision Assault Rifle > --- INVENTORY -------- Advanced Weight Redist. System Reaction Control System Improved Medium Armor Plating Improved Shield Generator PSU Rigger Proton Missile Launcher Field Lobotomy Kit [Rating: 54] Favorites ----------- Power Ion Engine Engine Ion Engine Power Core Light Nuclear Core Propulsion Airjet Wheel Wheel Hover Unit Airjet Flight Unit Flight Unit Utility Small Storage Unit Device Improved Sensor Array Storage Small Storage Unit Processor Modified TNC Hackware Hacking Suite Protection Hardened Light Armor Plating Weapon Assault Rifle Energy Gun Heavy Laser Energy Cannon Compact Ion Cannon Ballistic Gun Assault Rifle Ballistic Cannon Assault Cannon Launcher Proton Missile Launcher Special Weapon Mining Laser Build | -11 -10 -9 -9 -9 -8 -8 -7 -6 ------- Run | Yrd Mat Mat Min Exi Min Mat Fac Fac Slots Evolved 8 | . . 2 . . . 2 2 2 Power 1 | . . . . . . . . 1 Propulsion 2 | . . 1 . . . 1 . . Utility 4 | . . 1 . . . 1 2 . Weapon 1 | . . . . . . . . 1 Parts Attached 63 | 6 1 7 . 5 . 20 8 16 Power 5 | 1 . . . . . 1 . 3 Engine 1 | 1 . . . . . . . . Core 4 | . . . . . . 1 . 3 Reactor . | . . . . . . . . . Propulsion 13 | 1 1 2 . . . 7 1 1 Treads . | . . . . . . . . . Leg . | . . . . . . . . . Wheel 4 | 1 1 . . . . 2 . . Hover 7 | . . 1 . . . 4 1 1 Flight 2 | . . 1 . . . 1 . . Utility 16 | 2 . 3 . 3 . 2 3 3 Device 6 | 1 . 1 . 2 . . 1 1 Storage 1 | 1 . . . . . . . . Processor 6 | . . 1 . 1 . 2 . 2 Hackware 1 | . . . . . . . 1 . Protection 2 | . . 1 . . . . 1 . Artifact . | . . . . . . . . . Weapon 29 | 2 . 2 . 2 . 10 4 9 Energy Gun 2 | . . 1 . . . 1 . . Energy Cannon 2 | . . . . . . . . 2 Ballistic Gun 14 | 2 . 1 . . . 4 3 4 Ballistic Cannon 2 | . . . . 1 . 1 . . Launcher 4 | . . . . . . . 1 3 Special Weapon 5 | . . . . 1 . 4 . . Impact Weapon . | . . . . . . . . . Slashing Weapon . | . . . . . . . . . Piercing Weapon . | . . . . . . . . . Special Melee Weapon . | . . . . . . . . . Unidentified Prototypes 8 | . . 1 . 3 . 1 1 2 Parts Lost 21 | . . . . . . 3 . 18 Power 2 | . . . . . . . . 2 Propulsion 6 | . . . . . . 2 . 4 Utility 6 | . . . . . . . . 6 Weapon 7 | . . . . . . 1 . 6 Highest Loss Streak 10 | . . . . . . 3 . 10 To Critical Strikes . | . . . . . . . . . Average Slot Usage (%) 93 | . 90 95 100 100 100 96 100 77 Engine 5 | . 14 11 11 11 11 3 . . Core 3 | . . . . . . 5 7 4 Wheel 13 | . 19 22 22 22 22 19 . . Hover 15 | . . 6 11 11 11 11 30 19 Device 8 | . 14 11 11 10 11 9 7 6 Storage 8 | . 14 11 11 11 11 9 7 5 Processor 15 | . . 6 11 11 11 18 23 18 Hackware 1 | . . . . . . . 4 4 Ballistic Gun 13 | . 28 18 22 17 11 6 14 11 Ballistic Cannon 3 | . . . . 4 11 6 . . Naked Turns . | . . . . . . . . . Heaviest Build 29 | 15 15 21 15 20 18 20 23 29 Greatest Support 36 | 16 26 26 26 26 26 36 36 32 Greatest Overweight (x) 4 | . . . . . . 2 . 4 Average Overweight (x) . | . . . . . . . . . Largest Inventory Capacity 8 | 8 8 8 8 8 8 8 8 8 Average Capacity 7 | 7 8 8 8 8 8 8 8 7 Most Carried 8 | 1 1 8 8 8 7 8 8 8 Average Carried 6 | . 1 3 8 7 7 7 7 7 Final Capacity 8 | 8 8 8 8 8 8 8 8 5 Final Carried 8 | 1 1 8 8 7 7 8 8 5 Class Distribution -------------------- 36% | Scout 31% | Mutant 20% | Skirmisher 6% | Scavenger-Skirmisher 5% | Scavenger-Mutant Dominant Class ---------------- Mutant | -10/Materials Scavenger-Mutant | -9/Materials Mutant | -9/Mines Mutant | -9/Exiles Skirmisher | -8/Mines Skirmisher | -8/Materials Scout | -7/Factory Scout | -6/Factory Resources | -11 -10 -9 -9 -9 -8 -8 -7 -6 ----------- Run | Yrd Mat Mat Min Exi Min Mat Fac Fac Matter Collected 1052 | 257 27 198 . . . 291 63 216 Remotely . | . . . . . . . . . Salvage Created 843 | 50 27 223 . . . 198 75 270 Parts 56 | 11 3 13 . . . 9 5 15 Haulers Intercepted 3 | . . 1 . . . 1 . 1 Recyclers Shooed 1 | . . . . . . . . 1 Parts Field Recycled . | . . . . . . . . . Retrieved Matter . | . . . . . . . . . Parts Self-Destructed . | . . . . . . . . . Prevented . | . . . . . . . . . Kills | -11 -10 -9 -9 -9 -8 -8 -7 -6 ------- Run | Yrd Mat Mat Min Exi Min Mat Fac Fac Combat Hostiles Destroyed 14 | . . 3 . . . 6 1 4 Guns 8 | . . 3 . . . 1 1 3 Cannons 5 | . . . . . . 5 . . AOE 1 | . . . . . . . . 1 Classes Destroyed 9 | 1 1 3 . . . 1 2 1 Builder 1 | . 1 . . . . . . . Tunneler 3 | 3 . . . . . . . . Hauler 3 | . . 1 . . . 1 . 1 Operator 1 | . . . . . . . 1 . Watcher 1 | . . 1 . . . . . . Swarmer 4 | . . . . . . 2 . 2 Grunt 7 | . . 3 . . . 4 . . Sentry 2 | . . . . . . . 1 1 Programmer 1 | . . . . . . . . 1 Best Kill Streak 3 | 2 1 2 . . . 3 1 1 Combat Bots Only 2 | . . 2 . . . 2 1 1 Max Kills in Single Turn 2 | 2 1 1 . . . 1 1 1 Gunslinging . | . . . . . . . . . Exploded 1 | . . . . . . . . 1 Melee . | . . . . . . . . . Uniques/NPCs Destroyed . | . . . . . . . . . Combat | -11 -10 -9 -9 -9 -8 -8 -7 -6 -------- Run | Yrd Mat Mat Min Exi Min Mat Fac Fac Hostile Shots Fired 288 | . 1 16 . . . 41 32 198 Missed 100 | . . 10 . . . 15 16 59 Damage Taken 2791 | . 12 74 . . . 365 101 2239 Core 966 | . . 21 . . . 58 23 864 Absorbed by Shields . | . . . . . . . . . Core Remaining (%) 95 | 100 100 . . . 94 89 96 . Volleys Fired 107 | 2 5 19 . . . 42 10 29 Largest 3 | 2 2 2 . . . 2 2 3 Hottest 129 | 40 40 40 . . . 113 100 129 Shots Fired 195 | 4 10 38 . . . 63 19 61 Gun 149 | 4 10 38 . . . 21 18 58 Cannon 24 | . . . . . . 22 . 2 Launcher 1 | . . . . . . . . 1 Special 21 | . . . . . . 20 1 . Kinetic 164 | 4 10 38 . . . 36 18 58 Thermal 29 | . . . . . . 26 1 2 Explosive . | . . . . . . . . . Electromagnetic 1 | . . . . . . . . 1 Robot Hit Streak 17 | 3 4 7 . . . 10 6 17 Robot Miss Streak 3 | . 3 2 . . . 3 1 2 Penetration Max 1 | . . . . . . . . 1 Secondary Targets 1 | . . 1 . . . . . . Max Gunslinging Chain 1 | . . 1 . . . . . . Shots Hit Robots 127 | 3 5 27 . . . 32 13 47 Core Hits 44 | 3 2 9 . . . 11 5 14 Critical Kills 2 | . . 1 . . . . . 1 Critical Parts Destroyed 2 | . . 1 . . . . 1 . Critical Strikes 5 | . . 2 . . . 1 1 1 Burn 1 | . . . . . . 1 . . Destroy 4 | . . 2 . . . . 1 1 Melee Attacks . | . . . . . . . . . Impact . | . . . . . . . . . Slashing . | . . . . . . . . . Piercing . | . . . . . . . . . Sneak Attacks . | . . . . . . . . . Combat Hostiles . | . . . . . . . . . Follow-up Attacks . | . . . . . . . . . Damage Inflicted 2245 | 44 79 349 . . . 585 206 982 Guns 1863 | 44 79 346 . . . 233 206 955 Cannons 352 | . . . . . . 352 . . Explosions 20 | . . . . . . . . 20 Melee . | . . . . . . . . . Ramming 10 | . . 3 . . . . . 7 Kinetic 2121 | 44 79 346 . . . 491 206 955 Thermal 94 | . . . . . . 94 . . Explosive . | . . . . . . . . . Electromagnetic 20 | . . . . . . . . 20 Impact . | . . . . . . . . . Slashing . | . . . . . . . . . Piercing . | . . . . . . . . . Highest Corruption . | . . . . . . . . . Average Corruption . | . . . . . . . . . Corruption Purged . | . . . . . . . . . Corruption Blocked . | . . . . . . . . . Overload Shots . | . . . . . . . . . Overflow Damage . | . . . . . . . . . Projectiles . | . . . . . . . . . Explosions . | . . . . . . . . . Melee . | . . . . . . . . . Knockbacks 3 | . . . . . . 3 . . Impact . | . . . . . . . . . Kinetic 3 | . . . . . . 3 . . Secondary . | . . . . . . . . . Self-Inflicted Damage 4 | . . 1 . . . . . 3 Shots . | . . . . . . . . . Rammed 2 | . . 1 . . . . . 1 Targets Rammed 2 | . . 1 . . . . . 1 Kicked . | . . . . . . . . . Crushed . | . . . . . . . . . Highest Temperature 117 | . . . . . . 117 28 39 Average Temperature 24 | . . . . . . 27 13 13 Received Heat Transfer 282 | . 6 42 . . . 153 9 72 Siege Activations . | . . . . . . . . . Robots Corrupted . | . . . . . . . . . Combat Hostiles . | . . . . . . . . . Parts Fried . | . . . . . . . . . Impact Corruptions . | . . . . . . . . . Robots Melted . | . . . . . . . . . Combat Hostiles . | . . . . . . . . . Parts Melted . | . . . . . . . . . Heat Transferred 259 | . . . . . . 259 . . Parts Sabotaged . | . . . . . . . . . Parts Stolen . | . . . . . . . . . Parts Stripped . | . . . . . . . . . Power Chain Reactions . | . . . . . . . . . Alert | -11 -10 -9 -9 -9 -8 -8 -7 -6 ------- Run | Yrd Mat Mat Min Exi Min Mat Fac Fac Peak Influence 195 | 15 74 195 75 . . 188 181 113 Initial 75 | . 9 31 75 . . . 56 21 Average 50 | 5 46 114 75 . . 50 85 24 Maximum Alert Level . | . . . . . . . . . Low Security (%) 100 | 100 100 100 100 . 100 100 100 100 Level 1 . | . . . . . . . . . Level 2 . | . . . . . . . . . Level 3 . | . . . . . . . . . Level 4 . | . . . . . . . . . Level 5 . | . . . . . . . . . High Security . | . . . . . . . . . Max Security . | . . . . . . . . . Squads Dispatched 11 | . . 3 . . . 3 2 3 Investigation 3 | . . 2 . . . . 1 . Extermination 1 | . . . . . . . . 1 Reinforcement 5 | . . 1 . . . 1 1 2 Assault . | . . . . . . . . . Garrison 2 | . . . . . . 2 . . Intercept . | . . . . . . . . . Searches Triggered . | . . . . . . . . . Construction Impeded . | . . . . . . . . . Haulers Reinforced . | . . . . . . . . . Active Scanning Responses . | . . . . . . . . . Cargo Convoy Interrupts . | . . . . . . . . . Stealth | -11 -10 -9 -9 -9 -8 -8 -7 -6 --------- Run | Yrd Mat Mat Min Exi Min Mat Fac Fac Distress Signals 4 | . . 3 . . . 1 . . Communications Jammed . | . . . . . . . . . Distress Signals . | . . . . . . . . . Times Spotted 54 | . 4 11 . . . 13 9 17 Peak Tracking Total 8 | . 3 5 . . . 8 3 6 Tactical Retreats 9 | . 1 1 . . . 4 . 3 Traps | -11 -10 -9 -9 -9 -8 -8 -7 -6 ------- Run | Yrd Mat Mat Min Exi Min Mat Fac Fac Traps Triggered 3 | . . 1 . . . . . 2 Indirectly . | . . . . . . . . . Trap Hack Attempts . | . . . . . . . . . Triggered . | . . . . . . . . . Disarmed . | . . . . . . . . . Reprogrammed . | . . . . . . . . . Reused . | . . . . . . . . . Traps Extracted . | . . . . . . . . . Installed . | . . . . . . . . . Triggered . | . . . . . . . . . Machines | -11 -10 -9 -9 -9 -8 -8 -7 -6 ---------- Run | Yrd Mat Mat Min Exi Min Mat Fac Fac Machines Disabled . | . . . . . . . . . Max in Single Turn . | . . . . . . . . . Garrison Access 3 | . . . . . . 1 . 2 Machines Repaired . | . . . . . . . . . Machines Dismantled . | . . . . . . . . . Machines Sabotaged . | . . . . . . . . . Overloaded Fab Kills . | . . . . . . . . . Hacking | -11 -10 -9 -9 -9 -8 -8 -7 -6 --------- Run | Yrd Mat Mat Min Exi Min Mat Fac Fac Machines Accessed 18 | . . . . 4 . 3 3 8 Terminals 7 | . . . . . . 2 2 3 Fabricators 2 | . . . . . . . 1 1 Repair Stations 1 | . . . . . . . . 1 Recycling Units 1 | . . . . . . . . 1 Scanalyzers . | . . . . . . . . . Garrison Access 3 | . . . . . . 1 . 2 Total Hacks 73 | . . . . 49 . 5 6 13 Successful 62 | . . . . 49 . 3 . 10 Failed 11 | . . . . . . 2 6 3 Catastrophic 6 | . . . . . . 2 3 1 Database Lockouts . | . . . . . . . . . Manual 6 | . . 1 . 1 . 2 . 2 Terminals 13 | . . . . . . 4 4 5 Fabricators 3 | . . . . . . . 2 1 Repair Stations 2 | . . . . . . . . 2 Recycling Units 2 | . . . . . . . . 2 Scanalyzers . | . . . . . . . . . Garrison Access 4 | . . . . . . 1 . 3 Terminal Hacks 54 | . . . . 49 . 2 . 3 Record 49 | . . . . 49 . . . . Open DSF 1 | . . . . . . . . 1 Branch Access Points 1 | . . . . . . . . 1 Emergency Access Points 1 | . . . . . . 1 . . Zone Layout 2 | . . . . . . 1 . 1 Fabricator Hacks 1 | . . . . . . . . 1 Network Status 1 | . . . . . . . . 1 Repair Station Hacks 1 | . . . . . . . . 1 Scan Component 1 | . . . . . . . . 1 Recycling Unit Hacks 2 | . . . . . . . . 2 Report Inventory 1 | . . . . . . . . 1 Retrieve Components 1 | . . . . . . . . 1 Scanalyzer . | . . . . . . . . . Garrison Access Hacks 4 | . . . . . . 1 . 3 Seal Access 3 | . . . . . . 1 . 2 Coupler Status 1 | . . . . . . . . 1 Unauthorized Hacks . | . . . . . . . . . Terminals . | . . . . . . . . . Fabricators . | . . . . . . . . . Repair Stations . | . . . . . . . . . Recycling Units . | . . . . . . . . . Scanalyzers . | . . . . . . . . . Garrison Access . | . . . . . . . . . Data Cores Recovered . | . . . . . . . . . Used . | . . . . . . . . . Hacking Detections 11 | . . . . . . 2 3 6 Full Trace Events 1 | . . . . . . . 1 . Feedback Events . | . . . . . . . . . Feedback Blocked . | . . . . . . . . . Robot Schematics Acquired . | . . . . . . . . . Robots Built . | . . . . . . . . . Authchips . | . . . . . . . . . Time . | . . . . . . . . . Total Robot Build Rating . | . . . . . . . . . Part Schematics Acquired . | . . . . . . . . . Parts Built . | . . . . . . . . . Authchips . | . . . . . . . . . Time . | . . . . . . . . . Total Part Build Rating . | . . . . . . . . . Parts Repaired . | . . . . . . . . . Time . | . . . . . . . . . Parts Recycled . | . . . . . . . . . Recycled Matter . | . . . . . . . . . Retrieved Matter . | . . . . . . . . . Retrieved Components 1 | . . . . . . . . 1 Parts Scanalyzed . | . . . . . . . . . Part Schematics Acquired . | . . . . . . . . . Parts Damaged . | . . . . . . . . . Bothacking | -11 -10 -9 -9 -9 -8 -8 -7 -6 ------------ Run | Yrd Mat Mat Min Exi Min Mat Fac Fac Used RIF Installer . | . . . . . . . . . Robots Hacked . | . . . . . . . . . Non-combat . | . . . . . . . . . Combat . | . . . . . . . . . Robot Hacks Applied . | . . . . . . . . . Relay Couplers Released . | . . . . . . . . . Fabnet Peak Effective % . | . . . . . . . . . Robots Rewired . | . . . . . . . . . Allies Hacked . | . . . . . . . . . Hacks Repelled . | . . . . . . . . . Allies | -11 -10 -9 -9 -9 -8 -8 -7 -6 -------- Run | Yrd Mat Mat Min Exi Min Mat Fac Fac Total Allies 1 | . . . . . . 1 . . Largest Group 1 | . . . . . . 1 . . Highest-Rated Group 15 | . . . . . . 15 . . Highest-Rated Ally 15 | . . . . . . 15 . . Total Orders . | . . . . . . . . . Ally Attacks 1 | . . . . . . 1 . . Total Damage 24 | . . . . . . 24 . . Kills . | . . . . . . . . . Allies Corrupted . | . . . . . . . . . Allies Melted . | . . . . . . . . . Field Lobotomies 1 | . . . . . . 1 . . Intel | -11 -10 -9 -9 -9 -8 -8 -7 -6 ------- Run | Yrd Mat Mat Min Exi Min Mat Fac Fac Robot Analysis Total . | . . . . . . . . . Derelict Logs Recovered . | . . . . . . . . . Drone Launches . | . . . . . . . . . Drone Recoveries . | . . . . . . . . . Exploration | -11 -10 -9 -9 -9 -8 -8 -7 -6 ------------- Run | Yrd Mat Mat Min Exi Min Mat Fac Fac Turns Passed 3228 | 76 76 365 55 490 419 562 514 671 Spaces Moved 2671 | 61 62 275 47 529 185 304 471 737 Core 136 | 1 . . . . . . . 135 Treads . | . . . . . . . . . Legs . | . . . . . . . . . Wheels 1366 | 60 62 275 47 529 185 208 . . Hover 1169 | . . . . . . 96 471 602 Flight . | . . . . . . . . . Fastest Speed 40 | 50 90 90 90 90 90 48 40 45 Average Speed 70 | 99 96 90 90 90 90 75 45 52 Slowest Speed 250 | 100 100 90 90 90 90 195 48 250 Overloaded Moves 2 | . . . . . . . 2 . Propulsion Burnouts . | . . . . . . . . . Robots Hopped . | . . . . . . . . . Cave-ins Triggered . | . . . . . . . . . Exploration Rate (%) 31 | 4 26 28 23 93 41 31 18 21 Regions Visited 8 Branch Regions 3 Pre-discovered Areas 1 | . . . . 1 . . . . Known Exits Taken 2 | . . . . . . 1 1 . Unknown Exits Taken 6 | 1 1 1 1 1 1 . . . Scrap Searched . | . . . . . . . . . Spaces Dug 19 | . . . . . . 19 . . Terrain Destroyed 23 | . . . . . . 22 . 1 Melee . | . . . . . . . . . Projectile 23 | . . . . . . 22 . 1 AOE . | . . . . . . . . . Terrain Rammed . | . . . . . . . . . Walls Destroyed . | . . . . . . . . . Machines Disabled . | . . . . . . . . . Actions | -11 -10 -9 -9 -9 -8 -8 -7 -6 --------- Run | Yrd Mat Mat Min Exi Min Mat Fac Fac Total 3776 | 69 67 353 59 543 437 531 750 967 Wait 883 | . . 42 13 3 253 151 246 175 Move 2663 | 60 61 274 46 528 184 303 470 737 Hop . | . . . . . . . . . Pick Up 22 | 1 . 6 . . . 5 8 2 Fast Attach 30 | 6 1 4 . 3 . 9 2 5 Attach 14 | . . 1 . . . 2 2 9 Detach 14 | . . 3 . 3 . 2 . 6 Swap 19 | . . 2 . 2 . 9 4 2 Drop 21 | . . 1 . 3 . 8 8 1 Fire 107 | 2 5 19 . . . 42 10 29 Melee . | . . . . . . . . . Ram 2 | . . 1 . . . . . 1 Kick . | . . . . . . . . . Crush . | . . . . . . . . . Escape Stasis . | . . . . . . . . . Rewire 1 | . . . . 1 . . . . Trap . | . . . . . . . . . Miscellaneous . | . . . . . . . . . Route ------- -11/Scrapyard -10/Materials -9/Materials (discovered 2 exits: [*Min] / [*Sto]) -9/Mines -9/Exiles (discovered 2 exits: [*Min x2]) -8/Mines -8/Materials -7/Factory -6/Factory (discovered 2 exits: Low x2) History --------- Turn | Location | Event 24 | -11/Scrapyard | Discovered new exit (range 15) 77 | -11/Scrapyard | Entered Materials 150 | -10/Materials | Discovered new exit (range 3) 153 | -10/Materials | Entered another Materials area 153 | -9/Materials | Evolved 2 slots: Propulsion x1, Utility x1 370 | -9/Materials | Met 8R-AWN 448 | -9/Materials | Discovered new exit (range 17) 506 | -9/Materials | Discovered new exit (range 10) 518 | -9/Materials | Entered Mines 519 | -9/Mines | Followed 8R-AWN into the Mines 568 | -9/Mines | Discovered new exit (range 5) 573 | -9/Mines | Entered Exiles 588 | -9/Exiles | Discovered new exit (range 15) 597 | -9/Exiles | Welcomed by 8R-AWN 613 | -9/Exiles | Met EX-HEX 653 | -9/Exiles | Met EX-DEC 698 | -9/Exiles | Learned location of Zion (-7) 729 | -9/Exiles | Discovered new exit (range 12) 779 | -9/Exiles | Met EX-BIN 789 | -9/Exiles | Build established: Mutant 793 | -9/Exiles | Aligned with FarCom system 794 | -9/Exiles | Given EX-Vault access code 833 | -9/Exiles | Opened EX-Vault 839 | -9/Exiles | Found Prototype Processor 839 | -9/Exiles | Identified Modified TNC 844 | -9/Exiles | Found Prototype Special Weapon 844 | -9/Exiles | Identified Field Lobotomy Kit 851 | -9/Exiles | Found Prototype Device 851 | -9/Exiles | Identified PSU Rigger 874 | -9/Exiles | Warned to stay clear of 0b10 Research branches 927 | -9/Exiles | Visited The Gauntlet 1063 | -9/Exiles | Stole three prototypes: Modified TNC, PSU Rigger, Field Lobotomy Kit 1063 | -9/Exiles | Entered Mines 1349 | -8/Mines | Build established: Skirmisher 1467 | -8/Mines | Discovered new exit (range 3) 1482 | -8/Mines | Entered Materials 1482 | -8/Materials | Evolved 2 slots: Propulsion x1, Utility x1 1613 | -8/Materials | Garrison activated, responded to threat 1672 | -8/Materials | Lost 3 parts (2n1w) 1937 | -8/Materials | Assimilated Y-45 Defender with FLK Orb 2039 | -8/Materials | Discovered new exit (range 3) 2044 | -8/Materials | Identified exit to Factory 2044 | -8/Materials | Entered Factory 2044 | -7/Factory | Evolved 2 slots: Utility x2 2046 | -7/Factory | FarCom data flow suspended 2193 | -7/Factory | Build established: Scout 2457 | -7/Factory | Discovered new exit (range 17) 2486 | -7/Factory | Identified exit to Factory 2558 | -7/Factory | Entered another Factory area 2558 | -6/Factory | Evolved 2 slots: Power x1, Weapon x1 2659 | -6/Factory | Identified exit to Lower Caves 3130 | -6/Factory | Lost 10 parts (1p3n2u4w) 3184 | -6/Factory | Core integrity fell below 50% 3220 | -6/Factory | Core integrity fell below 20% 3229 | -6/Factory | Destroyed by S-27 Virus with Autogun Last Messages --------------- Acquired Launcher Guidance Computer. Acquired Triangulator. R-10 Processor collects Corrupted VTOL Module. K-01 Serf destroyed. Proton Missile Launcher destroyed. Lgt. Nuclear Core destroyed. Core Analyzer destroyed. R-10 Processor collects Med. Matter Pod. R-10 Processor collects Wheel. Triangulator destroyed. R-10 Processor collects Lgt. Ion Engine. Sml. Storage Unit destroyed. K-01 Serf collects debris. R-10 Processor collects Wheel. K-01 Serf collects debris. Com. Ion Cannon destroyed. Imp. Sensor Array destroyed. ALERT: Cargo convoy en route, clear transfer corridor. T-07 Excavator is excavating. Slammed into S-27 Virus. Map ----- +----------------------------------------------------+ | ???????????????????????????????????????# #???? | | ???????????????????????????????????????# #???? | | ???????????????????????????????????????+ +???? | | ???????????????????????????????????????# #???? | | ???????????????????????????????????????# #???? | | ???????????????????????????????????????# #???? | | ???????????????????????????????????##### #???? | | ####??????????????????+#############T ## ##### | | ????????????????? | | ???????????????? | | ???????????????? | | ???????????????? | | ???????????????? | | ##############??????????#########"########## | | # #?????????????# ! #??# | | # #?????????????# #??# | | + #?????????????# #??# | | # #?????????????# #??# | | # #?????????????# #??# | | # #?????????????# #??# | | # #?????????????# #??## # | | # #?????????????# #???# # | | # #?????????????# #???# # | | # #?????##+##???# #???# # | | # ####### ##### #???# # | | # + @ /% #???# # | | #################### ##################???# # | | +#"#################### #?????################ # | | # ## ##????# # | | """"""" # # R #????# ################ | | """"""" #??"" """ #ss ###### # #??????? | | """"""" #??"" """ /s s ???????? | | """"""" #??"" """ # ######## #???????? | | # # #??????# ###???????? | | ! # #######??????######?????????? | | ######################???????????????????????????? | | ?????????????????????????????????????????????????? | | ?????????????????????????????????????????????????? | | ?????????????????????????????????????????????????? | | ?????????????????????????????????????????????????? | | ?????????????????????????????????????????????????? | | ?????????????????????????????????????????????????? | | ?????????????????????????????????????????????????? | | ?????????????????????????????????????????????????? | | ?????????????????????????????????????????????????? | | ?????????????????????????????????????????????????? | | ?????????????????????????????????????????????????? | | ?????????????????????????????????????????????????? | | ?????????????????????????????????????????????????? | | ?????????????????????????????????????????????????? | +----------------------------------------------------+ Best States ------------- Heat Dissipation 37 Energy Generation 18 Energy Capacity 310 Matter Stores 300 Matter Capacity 300 Sight Range 20 Robot Scan Range 15 Terrain Scan Density 10 Armor Coverage 150 Evasion (%) 56 Launcher Accuracy 20 Core Analysis 6 Offensive Hacking 10 Item Schematics ----------------- None Robot Schematics ------------------ None Fabricated ------------ Nothing Alien Tech Used ----------------- None Achievements -------------- Librarian Challenges ------------ None Game ------ Seed GyrokineticGammaSabre Manual? 0 Play Time 00:59:30 Cumulative 22.6 hours Start 2024.04.10 @ 18:17:38 End 2024.04.10 @ 19:18:16 Sessions 1 Manual Loads 0 Difficulty Rogue Special Mode None Game No. 14 Rogue 14 Adventurer 0 Explorer 0 Win Type - Total 0 Types 0/0/0/0/0/0/0/0/0 Lore% 16 Gallery% 29 Achievement% 21 Wizard Run 0 Options --------- Layout 1 ASCII 0 Keyboard 1 Movement Numpad Keybinds 0 Fullscreen 1 Font 32/SmallcapsGlow Map View 77x35 Zoom Use 0% Tactical HUD 0 Map Filters NONE Filters NONE Steam 1 RUN: b1a557c7-dd42-421c-84a3-5cb5a901f3ad